fUST/lending_fUST_20260101
["ID","MTS","AMOUNT","RATE_DAILY","PERIOD"]
[400234782,1767209444075,-500.0,0.00025479,2]
[400234783,1767209444084,-1308.26,0.00025479,2]
[400234784,1767209444093,-369.26572285,0.00025479,2]
[400234785,1767209444103,-500.0,0.00025479,2]
[400234786,1767209444113,-549.03,0.00025479,2]
[400234787,1767209444123,-559.4,0.00025479,2]
[400234788,1767209444135,-2254.25,0.00025479,2]
[400234789,1767209444144,-1257.65,0.00025479,2]
[400234790,1767209444155,-6371.35,0.00025479,2]
[400234791,1767209444164,-739.54,0.00025479,2]
[400234792,1767209444174,-502.72,0.00025479,2]
[400234793,1767209444183,-8989.4,0.00025479,2]
[400234794,1767209444193,-872.28,0.00025479,2]
[400234795,1767209444202,-2203.3,0.00025479,2]
[400234796,1767209444212,-700.98,0.00025479,2]
[400234797,1767209444221,-823.28,0.00025479,2]
[400234798,1767209444232,-765.67,0.00025479,2]
[400234800,1767209444241,-500.0,0.00025479,2]
[400234802,1767209444250,-182262.81340394,0.000255,7]
[400234804,1767209444260,-1000.0,0.000255,2]
[400234806,1767209444270,-1041.66666667,0.000255,7]
[400234807,1767209444279,-801.44475077,0.00025753,2]
[400234809,1767209444288,-500.0,0.00025753,2]
[400234810,1767209444298,-744.69,0.00025753,2]
[400234812,1767209444307,-500.0,0.00025753,2]
[400234813,1767209444317,-1308.26,0.00025753,2]
[400234815,1767209444326,-500.0,0.00025753,2]
[400234816,1767209444335,-549.03,0.00025753,2]
[400234817,1767209444344,-559.4,0.00025753,2]
[400234818,1767209444354,-2254.25,0.00025753,2]
[400234819,1767209444364,-1257.65,0.00025753,2]
[400234820,1767209444373,-6371.35,0.00025753,2]
[400234821,1767209444383,-739.54,0.00025753,2]
[400234822,1767209444392,-502.72,0.00025753,2]
[400234823,1767209444402,-8989.4,0.00025753,2]
[400234824,1767209444411,-872.28,0.00025753,2]
[400234825,1767209444422,-2203.3,0.00025753,2]
[400234826,1767209444431,-700.98,0.00025753,2]
[400234827,1767209444440,-823.28,0.00025753,2]
[400234828,1767209444450,-765.67,0.00025753,2]
[400234829,1767209444459,-500.0,0.00025753,2]
[400234830,1767209444468,-162.0,0.00025836,18]
[400234831,1767209444478,-2202.33606016,0.000259,2]
[400234832,1767209444487,-2220.6287671,0.00025955,2]
[400234833,1767209444496,-39750.25710912,0.00026,10]
[400234834,1767209444506,-1041.66666667,0.00026,10]
[400234835,1767209444515,-529.34920278,0.00026,2]
[400234836,1767209444524,-1640.0223535,0.00026,30]
[400234837,1767209444533,-19489.81,0.00026,2]
[400234838,1767209444543,-161.0,0.00026,5]
[400234839,1767209444552,-801.44475077,0.00026027,2]
[400234840,1767209444561,-500.0,0.00026027,2]
[400234841,1767209444570,-744.69,0.00026027,2]
[400234842,1767209444580,-500.0,0.00026027,2]
[400234843,1767209444590,-1308.26,0.00026027,2]
[400234844,1767209444603,-500.0,0.00026027,2]
[400234845,1767209444613,-549.03,0.00026027,2]
[400234846,1767209444623,-559.4,0.00026027,2]
[400234847,1767209444634,-2254.25,0.00026027,2]
[400234848,1767209444644,-1257.65,0.00026027,2]
[400234849,1767209444654,-6371.35,0.00026027,2]
[400234850,1767209444663,-739.54,0.00026027,2]
[400234851,1767209444675,-502.72,0.00026027,2]
[400234852,1767209444684,-8989.4,0.00026027,2]
[400234853,1767209444694,-872.28,0.00026027,2]
[400234854,1767209444703,-2203.3,0.00026027,2]
[400234855,1767209444713,-700.98,0.00026027,2]
[400234856,1767209444722,-823.28,0.00026027,2]
[400234857,1767209444731,-765.67,0.00026027,2]
[400234858,1767209444741,-500.0,0.00026027,2]
[400234859,1767209444750,-218.44,0.000261,2]
[400234860,1767209444759,-3147.76375777,0.00026175,2]
[400234861,1767209444768,-1041.66666667,0.000263,7]
[400234862,1767209444777,-801.44475077,0.00026301,2]
[400234863,1767209444786,-500.0,0.00026301,2]
[400234864,1767209444796,-744.69,0.00026301,2]
[400234865,1767209444805,-500.0,0.00026301,2]
[400234866,1767209444815,-1308.26,0.00026301,2]
[400234867,1767209444824,-500.0,0.00026301,2]
[400234868,1767209444833,-549.03,0.00026301,2]
[400234869,1767209444843,-559.4,0.00026301,2]
[400234870,1767209444853,-2254.25,0.00026301,2]
[400234871,1767209444862,-1257.65,0.00026301,2]
[400234872,1767209444871,-6371.35,0.00026301,2]
[400234873,1767209444881,-739.54,0.00026301,2]
[400234874,1767209444891,-502.72,0.00026301,2]
[400234875,1767209444901,-8989.4,0.00026301,2]
[400234876,1767209444911,-872.28,0.00026301,2]
[400234877,1767209444920,-2203.3,0.00026301,2]
[400234878,1767209444930,-700.98,0.00026301,2]
[400234879,1767209444939,-823.28,0.00026301,2]
[400234880,1767209444949,-765.67,0.00026301,2]
[400234881,1767209444958,-500.0,0.00026301,2]
[400234882,1767209444967,-243.6,0.00026478,2]
[400234883,1767209444979,-801.44475077,0.00026575,2]
[400234884,1767209444988,-500.0,0.00026575,2]
[400234885,1767209444998,-744.69,0.00026575,2]
[400234886,1767209445007,-500.0,0.00026575,2]
[400234887,1767209445016,-1308.26,0.00026575,2]
[400234888,1767209445026,-500.0,0.00026575,2]
[400234889,1767209445035,-549.03,0.00026575,2]
[400234890,1767209445046,-559.4,0.00026575,2]
[400234891,1767209445055,-2254.25,0.00026575,2]
[400234892,1767209445064,-1257.65,0.00026575,2]
[400234893,1767209445073,-6371.35,0.00026575,2]
[400234894,1767209445083,-739.54,0.00026575,2]
[400234895,1767209445092,-502.72,0.00026575,2]
[400234896,1767209445101,-8989.4,0.00026575,2]
[400234897,1767209445111,-872.28,0.00026575,2]
[400234898,1767209445120,-2203.3,0.00026575,2]
[400234899,1767209445130,-700.98,0.00026575,2]
[400234900,1767209445139,-823.28,0.00026575,2]
[400234902,1767209445150,-765.67,0.00026575,2]
[400234903,1767209445159,-500.0,0.00026575,2]
[400234904,1767209445169,-1973.55132122,0.00026621,2]
[400234905,1767209445178,-4756.09,0.00026673,2]
[400234906,1767209445187,-10000.0,0.00026749,2]
[400234907,1767209445197,-801.44475077,0.00026849,2]
[400234908,1767209445206,-500.0,0.00026849,2]
[400234909,1767209445215,-744.69,0.00026849,2]
[400234910,1767209445225,-500.0,0.00026849,2]
[400234911,1767209445234,-1308.26,0.00026849,2]
[400234912,1767209445243,-500.0,0.00026849,2]
[400234913,1767209445252,-549.03,0.00026849,2]
[400234914,1767209445262,-559.4,0.00026849,2]
[400234915,1767209445271,-2254.25,0.00026849,2]
[400234916,1767209445280,-1257.65,0.00026849,2]
[400234917,1767209445290,-6371.35,0.00026849,2]
[400234918,1767209445299,-739.54,0.00026849,2]
[400234919,1767209445309,-502.72,0.00026849,2]
[400234920,1767209445319,-8989.4,0.00026849,2]
[400234921,1767209445329,-872.28,0.00026849,2]
[400234922,1767209445338,-2203.3,0.00026849,2]
[400234923,1767209445348,-700.98,0.00026849,2]
[400234924,1767209445357,-823.28,0.00026849,2]
[400234925,1767209445367,-765.67,0.00026849,2]
[400234926,1767209445377,-500.0,0.00026849,2]
[400234927,1767209445386,-184.0,0.00027,7]
[400234928,1767209445396,-801.44475077,0.00027123,2]
[400234929,1767209445405,-286.39883318,0.00027123,2]
[400234930,1767209445414,-744.69,0.00027123,2]
[400234931,1767209445423,-500.0,0.00027123,2]
[400234932,1767209445432,-1308.26,0.00027123,2]
[400234933,1767209445442,-500.0,0.00027123,2]
[400234934,1767209445451,-549.03,0.00027123,2]
[400234935,1767209445461,-559.4,0.00027123,2]
[400234936,1767209445470,-2254.25,0.00027123,2]
[400234937,1767209445479,-1257.65,0.00027123,2]
[400234938,1767209445489,-6371.35,0.00027123,2]
[400234939,1767209445499,-739.54,0.00027123,2]
[400234940,1767209445508,-502.72,0.00027123,2]
[400234941,1767209445518,-8989.4,0.00027123,2]
[400234942,1767209445527,-872.28,0.00027123,2]
[400234943,1767209445537,-2203.3,0.00027123,2]
[400234944,1767209445546,-700.98,0.00027123,2]
[400234945,1767209445555,-823.28,0.00027123,2]
[400234946,1767209445565,-765.67,0.00027123,2]
[400234947,1767209445574,-500.0,0.00027123,2]
[400234948,1767209445583,-12667.999999,0.0002739,2]
[400234949,1767209445597,-568.83559814,0.0002739,7]
[400234950,1767209445607,-150.0,0.0002739,2]
[400234951,1767209445616,-801.44475077,0.00027397,2]
[400234952,1767209445625,-744.69,0.00027397,2]
[400234953,1767209445636,-377.85079341,0.00027397,2]
[400234954,1767209445645,-1308.26,0.00027397,2]
[400234955,1767209445656,-549.03,0.00027397,2]
[400234956,1767209445667,-559.4,0.00027397,2]
[400234957,1767209445681,-2254.25,0.00027397,2]
[400234958,1767209445690,-1257.65,0.00027397,2]
[400234959,1767209445701,-6371.35,0.00027397,2]
[400234960,1767209445710,-739.54,0.00027397,2]
[400234961,1767209445720,-502.72,0.00027397,2]
[400234962,1767209445729,-8989.4,0.00027397,2]
[400234963,1767209445739,-872.28,0.00027397,2]
[400234964,1767209445749,-2203.3,0.00027397,2]
[400234965,1767209445758,-700.98,0.00027397,2]
[400234966,1767209445767,-823.28,0.00027397,2]
[400234968,1767209445777,-151.0,0.00027397,7]
[400234969,1767209445787,-765.67,0.00027397,2]
[400234970,1767209445796,-161.294785,0.00027397,7]
[400234971,1767209445806,-161.294785,0.00027397,7]
[400234972,1767209445816,-161.294785,0.00027397,7]
[400234973,1767209445825,-161.294785,0.00027397,7]
[400234974,1767209445834,-500.0,0.00027397,2]
[400234975,1767209445844,-151.0,0.00027397,7]
[400234976,1767209445855,-178.917895,0.00027397,7]
[400234978,1767209445864,-1592.861267,0.00027397,7]
[400234979,1767209445874,-1592.861267,0.00027397,7]
[400234980,1767209445883,-1592.861267,0.00027397,7]
[400234981,1767209445892,-151.0,0.00027397,7]
[400234982,1767209445902,-1592.861267,0.00027397,7]
[400234983,1767209445911,-151.0,0.00027397,7]
[400234984,1767209445921,-203.384799,0.00027397,7]
[400234985,1767209445930,-203.384799,0.00027397,7]
[400234987,1767209445939,-203.384799,0.00027397,7]
[400234989,1767209445948,-203.384799,0.00027397,7]
[400234991,1767209445958,-992.843474,0.00027397,7]
[400234993,1767209445967,-151.0,0.00027397,7]
[400234994,1767209445976,-992.843474,0.00027397,7]
[400234995,1767209445985,-151.0,0.00027397,7]
[400234996,1767209445995,-992.843474,0.00027397,7]
[400234997,1767209446003,-151.0,0.00027397,7]
[400234998,1767209446013,-992.843474,0.00027397,7]
[400234999,1767209446022,-151.0,0.00027397,7]
[400235000,1767209446031,-151.0,0.00027397,7]
[400235001,1767209446040,-151.0,0.00027397,7]
[400235002,1767209446050,-151.0,0.00027397,7]
[400235003,1767209446059,-151.0,0.00027397,7]
[400235004,1767209446068,-151.0,0.00027397,7]
[400235005,1767209446077,-151.0,0.00027397,7]
[400235006,1767209446086,-151.0,0.00027397,7]
[400235007,1767209446095,-151.0,0.00027397,7]
[400235008,1767209446105,-151.0,0.00027397,7]
[400235009,1767209446114,-300.857289,0.00027397,7]
[400235010,1767209446123,-300.857289,0.00027397,7]
[400235011,1767209446132,-356.714676,0.00027397,7]
[400235012,1767209446142,-300.857289,0.00027397,7]
[400235013,1767209446151,-356.714676,0.00027397,7]
[400235014,1767209446160,-300.857289,0.00027397,7]
[400235015,1767209446170,-356.714676,0.00027397,7]
[400235016,1767209446179,-356.714676,0.00027397,7]
[400235017,1767209446188,-173.074121,0.00027397,7]
[400235018,1767209446197,-322.09978,0.00027397,7]
[400235019,1767209446206,-322.09978,0.00027397,7]
[400235020,1767209446215,-322.09978,0.00027397,7]
[400235021,1767209446224,-322.09978,0.00027397,7]
[400235022,1767209446233,-151.0,0.00027397,7]
[400235023,1767209446243,-1040.629164,0.00027397,7]
[400235024,1767209446252,-151.0,0.00027397,7]
[400235025,1767209446261,-1040.629164,0.00027397,7]
[400235026,1767209446270,-1040.629164,0.00027397,7]
[400235027,1767209446279,-1040.629164,0.00027397,7]
[400235028,1767209446288,-151.0,0.00027397,7]
[400235029,1767209446297,-354.430528,0.00027397,7]
[400235031,1767209446306,-151.0,0.00027397,7]
[400235033,1767209446315,-354.430528,0.00027397,7]
[400235035,1767209446324,-151.0,0.00027397,7]
[400235036,1767209446333,-354.430528,0.00027397,7]
[400235037,1767209446343,-354.430528,0.00027397,7]
[400235038,1767209446352,-151.0,0.00027397,7]
[400235040,1767209446361,-166.112827,0.00027397,7]
[400235042,1767209446370,-151.0,0.00027397,7]
[400235044,1767209446380,-151.0,0.00027397,7]
[400235046,1767209446390,-376.990072,0.00027397,7]
[400235047,1767209446399,-376.990072,0.00027397,7]
[400235048,1767209446408,-151.0,0.00027397,7]
[400235049,1767209446418,-376.990072,0.00027397,7]
[400235050,1767209446427,-376.990072,0.00027397,7]
[400235051,1767209446436,-151.0,0.00027397,7]
[400235052,1767209446444,-151.0,0.00027397,7]
[400235053,1767209446454,-151.0,0.00027397,7]
[400235054,1767209446556,-151.0,0.00027397,7]
[400235055,1767209446566,-151.0,0.00027397,7]
[400235056,1767209446575,-151.0,0.00027397,7]
[400235057,1767209446584,-442.954982,0.00027397,7]
[400235058,1767209446597,-151.0,0.00027397,7]
[400235059,1767209446607,-360.395551,0.00027397,7]
[400235060,1767209446616,-278.004127,0.00027397,7]
[400235061,1767209446626,-442.954982,0.00027397,7]
[400235062,1767209446636,-151.0,0.00027397,7]
[400235063,1767209446645,-360.395551,0.00027397,7]
[400235064,1767209446654,-442.954982,0.00027397,7]
[400235065,1767209446664,-278.004127,0.00027397,7]
[400235066,1767209446673,-151.0,0.00027397,7]
[400235067,1767209446682,-360.395551,0.00027397,7]
[400235068,1767209446691,-442.954982,0.00027397,7]
[400235069,1767209446701,-278.004127,0.00027397,7]
[400235070,1767209446715,-360.395551,0.00027397,7]
[400235071,1767209446724,-278.004127,0.00027397,7]
[400235072,1767209446733,-239.000196,0.00027397,7]
[400235073,1767209446743,-151.0,0.00027397,7]
[400235074,1767209446752,-151.0,0.00027397,7]
[400235075,1767209446761,-158.892051,0.00027397,7]
[400235076,1767209446771,-158.892051,0.00027397,7]
[400235077,1767209446780,-158.892051,0.00027397,7]
[400235078,1767209446790,-158.892051,0.00027397,7]
[400235079,1767209446799,-177.488115,0.00027397,7]
[400235080,1767209446808,-230.54366,0.00027397,7]
[400235081,1767209446818,-230.54366,0.00027397,7]
[400235082,1767209446827,-230.54366,0.00027397,7]
[400235083,1767209446836,-230.54366,0.00027397,7]
[400235084,1767209446846,-913.677244,0.00027397,7]
[400235085,1767209446855,-913.677244,0.00027397,7]
[400235086,1767209446867,-913.677244,0.00027397,7]
[400235087,1767209446877,-913.677244,0.00027397,7]
[400235088,1767209446886,-182.784702,0.00027397,7]
[400235089,1767209446895,-805.861522,0.00027397,7]
[400235090,1767209446905,-805.861522,0.00027397,7]
[400235091,1767209446915,-151.0,0.00027397,7]
[400235092,1767209446924,-805.861522,0.00027397,7]
[400235093,1767209446933,-151.0,0.00027397,7]
[400235094,1767209446943,-151.0,0.00027397,7]
[400235095,1767209446953,-187.899686,0.00027397,7]
[400235096,1767209446963,-805.861522,0.00027397,7]
[400235097,1767209446973,-151.0,0.00027397,7]
[400235098,1767209446982,-209.486994,0.00027397,7]
[400235099,1767209446992,-151.0,0.00027397,7]
[400235100,1767209447012,-151.0,0.00027397,7]
[400235101,1767209447032,-151.278502,0.00027397,7]
[400235102,1767209447043,-1559.059603,0.00027397,7]
[400235103,1767209447054,-1559.059603,0.00027397,7]
[400235104,1767209447067,-1559.059603,0.00027397,7]
[400235105,1767209447076,-1559.059603,0.00027397,7]
[400235106,1767209447087,-151.371196,0.00027397,7]
[400235107,1767209447109,-193.357014,0.00027397,7]
[400235108,1767209447131,-179.18193,0.00027397,7]
[400235109,1767209447143,-193.357014,0.00027397,7]
[400235110,1767209447153,-193.357014,0.00027397,7]
[400235111,1767209447166,-193.357014,0.00027397,7]
[400235112,1767209447177,-151.0,0.00027397,7]
[400235113,1767209447188,-151.0,0.00027397,7]
[400235114,1767209447198,-151.0,0.00027397,7]
[400235115,1767209447210,-151.0,0.00027397,7]
[400235116,1767209447222,-151.0,0.00027397,7]
[400235117,1767209447232,-151.0,0.00027397,7]
[400235118,1767209447244,-151.0,0.00027397,7]
[400235119,1767209447255,-151.0,0.00027397,7]
[400235120,1767209447265,-178.593012,0.00027397,2]
[400235121,1767209447274,-151.0,0.00027397,7]
[400235122,1767209447283,-151.0,0.00027397,7]
[400235123,1767209447294,-221.765393,0.00027397,7]
[400235124,1767209447304,-151.0,0.00027397,7]
[400235125,1767209447315,-151.0,0.00027397,7]
[400235126,1767209447324,-151.0,0.00027397,7]
[400235127,1767209447334,-151.0,0.00027397,7]
[400235128,1767209447343,-151.0,0.00027397,7]
[400235129,1767209447352,-151.0,0.00027397,7]
[400235130,1767209447362,-151.0,0.00027397,7]
[400235131,1767209447372,-300.511634,0.00027397,7]
[400235132,1767209447382,-160.429789,0.00027397,7]
[400235133,1767209447391,-151.0,0.00027397,7]
[400235134,1767209447401,-151.0,0.00027397,7]
[400235135,1767209447410,-429.596572,0.00027397,7]
[400235136,1767209447420,-394.521351,0.00027397,7]
[400235137,1767209447430,-429.596572,0.00027397,7]
[400235138,1767209447439,-151.0,0.00027397,7]
[400235139,1767209447448,-394.521351,0.00027397,7]
[400235140,1767209447457,-297.109657,0.00027397,7]
[400235141,1767209447467,-429.596572,0.00027397,7]
[400235142,1767209447476,-429.596572,0.00027397,7]
[400235143,1767209447485,-394.521351,0.00027397,7]
[400235144,1767209447494,-394.521351,0.00027397,7]
[400235145,1767209447503,-429.596572,0.00027397,7]
[400235146,1767209447513,-429.596572,0.00027397,7]
[400235147,1767209447522,-394.521351,0.00027397,7]
[400235148,1767209447532,-394.521351,0.00027397,7]
[400235149,1767209447542,-429.596572,0.00027397,7]
[400235150,1767209447551,-429.596572,0.00027397,7]
[400235151,1767209447561,-394.521351,0.00027397,7]
[400235152,1767209447570,-394.521351,0.00027397,7]
[400235153,1767209447580,-151.0,0.00027397,7]
[400235154,1767209447592,-151.0,0.00027397,7]
[400235155,1767209447603,-151.0,0.00027397,7]
[400235156,1767209447613,-151.0,0.00027397,7]
[400235157,1767209447623,-151.0,0.00027397,7]
[400235158,1767209447635,-151.0,0.00027397,7]
[400235159,1767209447645,-151.0,0.00027397,7]
[400235160,1767209447654,-151.0,0.00027397,7]
[400235161,1767209447664,-151.0,0.00027397,7]
[400235162,1767209447674,-151.0,0.00027397,7]
[400235163,1767209447684,-863.760546,0.00027397,7]
[400235164,1767209447694,-151.0,0.00027397,7]
[400235165,1767209447703,-261.056405,0.00027397,7]
[400235166,1767209447713,-863.760546,0.00027397,7]
[400235167,1767209447723,-863.760546,0.00027397,7]
[400235168,1767209447732,-863.760546,0.00027397,7]
[400235169,1767209447742,-863.760546,0.00027397,7]
[400235170,1767209447751,-863.760546,0.00027397,7]
[400235171,1767209447760,-863.760546,0.00027397,7]
[400235172,1767209447770,-863.760546,0.00027397,7]
[400235173,1767209447779,-1981.221944,0.00027397,7]
[400235174,1767209447788,-1981.221944,0.00027397,7]
[400235175,1767209447798,-1981.221944,0.00027397,7]
[400235176,1767209447807,-1981.221944,0.00027397,7]
[400235177,1767209447817,-406.819717,0.00027397,7]
[400235178,1767209447826,-1981.221944,0.00027397,7]
[400235179,1767209447836,-150.58382148,0.00027397,5]
[400235180,1767209447859,-500.65812564,0.00027397,5]
[400235181,1767209447879,-150.0,0.00027397,5]
[400235182,1767209447892,-754.47369855,0.00027409,2]
[400235183,1767209447901,-1000.0,0.00027415,2]
[400235184,1767209447910,-1000.0,0.00027415,2]
[400235185,1767209447920,-1000.0,0.00027415,2]
[400235186,1767209447929,-1000.0,0.00027415,2]
[400235187,1767209447939,-1000.0,0.00027415,2]
[400235188,1767209447948,-1000.0,0.00027415,2]
[400235189,1767209447958,-1000.0,0.00027415,2]
[400235190,1767209447967,-1000.0,0.00027415,2]
[400235191,1767209447977,-1000.0,0.00027415,2]
[400235192,1767209447986,-1000.0,0.00027415,2]
[400235193,1767209447996,-1000.0,0.00027415,2]
[400235194,1767209448006,-1000.0,0.00027415,2]
[400235195,1767209448015,-1000.0,0.00027415,2]
[400235196,1767209448025,-2000.0,0.00027426,7]
[400235197,1767209448035,-2000.0,0.00027435,7]
[400235198,1767209448045,-2000.0,0.00027443,7]
[400235199,1767209448055,-2000.0,0.00027452,7]
[400235200,1767209448064,-2000.0,0.00027461,7]
[400235201,1767209448073,-2000.0,0.0002747,7]
[400235202,1767209448083,-2000.0,0.00027479,7]
[400235203,1767209448093,-191.0,0.00027479,25]
[400235204,1767209448104,-2000.0,0.00027487,7]
[400235205,1767209448114,-2000.0,0.00027496,7]
[400235206,1767209448123,-1192.3,0.000275,14]
[400235207,1767209448134,-2000.0,0.00027505,7]
[400235208,1767209448143,-2000.0,0.00027514,7]
[400235209,1767209448152,-2000.0,0.00027523,7]
[400235210,1767209448161,-2000.0,0.00027531,7]
[400235211,1767209448171,-2000.0,0.0002754,7]
[400235212,1767209448181,-2000.0,0.00027542,7]
[400235213,1767209448190,-2000.0,0.00027549,7]
[400235214,1767209448200,-3147.76375777,0.00027551,2]
[400235215,1767209448210,-2000.0,0.00027558,7]
[400235216,1767209448219,-2000.0,0.00027567,7]
[400235217,1767209448229,-2000.0,0.00027575,7]
[400235218,1767209448240,-2000.0,0.00027584,7]
[400235219,1767209448249,-2000.0,0.00027593,7]
[400235220,1767209448260,-2000.0,0.00027602,7]
[400235221,1767209448269,-2000.0,0.00027611,7]
[400235222,1767209448279,-2000.0,0.00027619,7]
[400235223,1767209448288,-2000.0,0.00027628,7]
[400235224,1767209448297,-2000.0,0.00027637,7]
[400235225,1767209448307,-2000.0,0.00027646,7]
[400235226,1767209448316,-2000.0,0.00027655,7]
[400235227,1767209448325,-2000.0,0.00027663,7]
[400235228,1767209448335,-801.44475077,0.00027671,2]
[400235229,1767209448344,-152.611704,0.00027671,7]
[400235230,1767209448353,-151.0,0.00027671,7]
[400235231,1767209448362,-242.224845,0.00027671,7]
[400235232,1767209448371,-234.643774,0.00027671,7]
[400235233,1767209448380,-242.224845,0.00027671,7]
[400235234,1767209448389,-242.224845,0.00027671,7]
[400235235,1767209448399,-242.224845,0.00027671,7]
[400235236,1767209448408,-744.69,0.00027671,2]
[400235237,1767209448418,-1308.26,0.00027671,2]
[400235238,1767209448427,-549.03,0.00027671,2]
[400235239,1767209448436,-559.4,0.00027671,2]
[400235240,1767209448445,-2254.25,0.00027671,2]
[400235241,1767209448454,-1257.65,0.00027671,2]
[400235242,1767209448463,-6371.35,0.00027671,2]
[400235243,1767209448473,-739.54,0.00027671,2]
[400235244,1767209448482,-502.72,0.00027671,2]
[400235245,1767209448492,-8989.4,0.00027671,2]
[400235246,1767209448501,-872.28,0.00027671,2]
[400235247,1767209448511,-2203.3,0.00027671,2]
[400235248,1767209448520,-700.98,0.00027671,2]
[400235249,1767209448530,-823.28,0.00027671,2]
[400235250,1767209448539,-765.67,0.00027671,2]
[400235251,1767209448548,-500.0,0.00027671,2]
[400235252,1767209448556,-2000.0,0.00027672,7]
[400235253,1767209448566,-2000.0,0.00027681,7]
[400235254,1767209448575,-2000.0,0.0002769,7]
[400235255,1767209448585,-2000.0,0.00027699,7]
[400235256,1767209448597,-2000.0,0.00027707,7]
[400235257,1767209448606,-2000.0,0.00027716,7]
[400235258,1767209448615,-2000.0,0.00027725,7]
[400235259,1767209448624,-2000.0,0.00027734,7]
[400235260,1767209448634,-2000.0,0.00027743,7]
[400235261,1767209448644,-2000.0,0.00027751,7]
[400235262,1767209448653,-299.0,0.00027753,2]
[400235263,1767209448663,-299.0,0.00027753,2]
[400235264,1767209448673,-299.0,0.00027753,2]
[400235265,1767209448681,-299.0,0.00027753,2]
[400235266,1767209448690,-299.0,0.00027753,2]
[400235267,1767209448699,-299.0,0.00027753,2]
[400235268,1767209448708,-299.0,0.00027753,2]
[400235269,1767209448717,-299.0,0.00027753,2]
[400235270,1767209448726,-299.0,0.00027753,2]
[400235271,1767209448735,-299.0,0.00027753,2]
[400235272,1767209448745,-299.0,0.00027753,2]
[400235273,1767209448754,-299.0,0.00027753,2]
[400235274,1767209448763,-299.0,0.00027753,2]
[400235275,1767209448772,-299.0,0.00027753,2]
[400235276,1767209448780,-299.0,0.00027753,2]
[400235277,1767209448789,-299.0,0.00027753,2]
[400235278,1767209448798,-299.0,0.00027753,2]
[400235279,1767209448807,-299.0,0.00027753,2]
[400235280,1767209448816,-299.0,0.00027753,2]
[400235281,1767209448825,-299.0,0.00027753,2]
[400235282,1767209448835,-299.0,0.00027753,2]
[400235283,1767209448845,-299.0,0.00027753,2]
[400235284,1767209448854,-299.0,0.00027753,2]
[400235285,1767209448863,-299.0,0.00027753,2]
[400235286,1767209448872,-299.0,0.00027753,2]
[400235287,1767209448882,-299.0,0.00027753,2]
[400235288,1767209448891,-299.0,0.00027753,2]
[400235289,1767209448900,-299.0,0.00027753,2]
[400235290,1767209448910,-299.0,0.00027753,2]
[400235291,1767209448919,-299.0,0.00027753,2]
[400235292,1767209448928,-299.0,0.00027753,2]
[400235293,1767209448937,-299.0,0.00027753,2]
[400235294,1767209448946,-2000.0,0.0002776,7]
[400235295,1767209448955,-2000.0,0.00027769,7]
[400235296,1767209448964,-2000.0,0.00027778,7]
[400235297,1767209448973,-2000.0,0.00027787,7]
[400235298,1767209448982,-2000.0,0.00027795,7]
[400235299,1767209448992,-156.46,0.000278,7]
[400235300,1767209449001,-2000.0,0.00027804,7]
[400235301,1767209449102,-2000.0,0.00027813,7]
[400235302,1767209449112,-151.0,0.00027813,7]